[Event "Titled Tuesday Blitz August 1 Early 2023"]
[White "Baskakov, Egor"]
[Black "Firouzja, Alireza"]
[WhiteFideId "24197866"]
[BlackFideId "12573981"]
[WhiteElo "2941"]
[BlackElo "3077"]
[Result "0-1"]
[Round "11"]
[TimeControl "180+1"]
[Date "2023.08.01"]
[WhiteClock "0:00:00"]
[BlackClock "0:00:36"]
[Board "6"]

1. e4 {[%clk 0:03:00]}  c5 {[%clk 0:03:00]} 2. Nf3 {[%clk 0:03:00]}  d6 {[%clk 0:03:01]} 3. d4 {[%clk 0:03:00]}  cxd4 {[%clk 0:03:01]} 4. Nxd4 {[%clk 0:03:01]}  Nf6 {[%clk 0:03:02]} 5. Nc3 {[%clk 0:03:01]}  a6 {[%clk 0:03:03]} 6. a4 {[%clk 0:03:01]}  e5 {[%clk 0:03:03]} 7. Nde2 {[%clk 0:03:02]}  Be7 {[%clk 0:03:04]} 8. g3 {[%clk 0:03:02]}  h5 {[%clk 0:03:04]} 9. h3 {[%clk 0:03:02]}  Nc6 {[%clk 0:03:04]} 10. Bg2 {[%clk 0:03:01]}  Be6 {[%clk 0:03:05]} 11. Nd5 {[%clk 0:03:01]}  h4 {[%clk 0:03:05]} 12. g4 {[%clk 0:03:01]}  Nd7 {[%clk 0:03:03]} 13. O-O {[%clk 0:03:00]}  Rc8 {[%clk 0:02:58]} 14. Be3 {[%clk 0:02:57]}  Bg5 {[%clk 0:02:58]} 15. f4 {[%clk 0:02:55]}  exf4 {[%clk 0:02:58]} 16. Nexf4 {[%clk 0:02:55]}  Nce5 {[%clk 0:02:47]} 17. b3 {[%clk 0:02:55]}  O-O {[%clk 0:02:45]} 18. c4 {[%clk 0:02:41]}  Bxd5 {[%clk 0:02:41]} 19. exd5 {[%clk 0:02:40]}  Re8 {[%clk 0:02:41]} 20. Bd4 {[%clk 0:02:36]}  a5 {[%clk 0:02:41]} 21. Nd3 {[%clk 0:02:18]}  Nxd3 {[%clk 0:02:38]} 22. Qxd3 {[%clk 0:02:19]}  Bf6 {[%clk 0:02:38]} 23. Rxf6 {[%clk 0:02:14]}  Nxf6 {[%clk 0:02:38]} 24. Rf1 {[%clk 0:02:14]}  Nd7 {[%clk 0:02:30]} 25. Qf5 {[%clk 0:02:13]}  Ne5 {[%clk 0:02:29]} 26. Bxe5 {[%clk 0:01:40]}  Rxe5 {[%clk 0:02:28]} 27. Qxf7+ {[%clk 0:01:41]}  Kh8 {[%clk 0:02:29]} 28. Be4 {[%clk 0:01:41]}  Qe7 {[%clk 0:02:16]} 29. Qxe7 {[%clk 0:01:34]}  Rxe7 {[%clk 0:02:16]} 30. Bg6 {[%clk 0:01:12]}  Kg8 {[%clk 0:02:11]} 31. Rf5 {[%clk 0:01:07]}  b6 {[%clk 0:02:08]} 32. Kg2 {[%clk 0:00:50]}  Rcc7 {[%clk 0:02:09]} 33. Kf3 {[%clk 0:00:45]}  Re1 {[%clk 0:02:08]} 34. g5 {[%clk 0:00:37]}  Rf1+ {[%clk 0:02:07]} 35. Kg4 {[%clk 0:00:38]}  Rxf5 {[%clk 0:02:07]} 36. Bxf5 {[%clk 0:00:37]}  Re7 {[%clk 0:01:58]} 37. Be6+ {[%clk 0:00:36]}  Kh7 {[%clk 0:01:59]} 38. Kxh4 {[%clk 0:00:35]}  g6 {[%clk 0:01:59]} 39. Kg4 {[%clk 0:00:35]}  Kg7 {[%clk 0:02:00]} 40. Kf4 {[%clk 0:00:25]}  Re8 {[%clk 0:02:00]} 41. Ke3 {[%clk 0:00:24]}  Rf8 {[%clk 0:02:00]} 42. Bd7 {[%clk 0:00:21]}  Rf1 {[%clk 0:02:00]} 43. Ke4 {[%clk 0:00:17]}  Rb1 {[%clk 0:02:00]} 44. Kf4 {[%clk 0:00:13]}  Rxb3 {[%clk 0:02:00]} 45. h4 {[%clk 0:00:14]}  Rc3 {[%clk 0:01:58]} 46. Bb5 {[%clk 0:00:14]}  Rc1 {[%clk 0:01:58]} 47. Kg4 {[%clk 0:00:14]}  Rf1 {[%clk 0:01:47]} 48. Bd7 {[%clk 0:00:12]}  Rg1+ {[%clk 0:01:42]} 49. Kf4 {[%clk 0:00:12]}  b5 {[%clk 0:01:34]} 50. Bxb5 {[%clk 0:00:07]}  Kf7 {[%clk 0:01:31]} 51. Bd7 {[%clk 0:00:06]}  Ke7 {[%clk 0:01:31]} 52. Bb5 {[%clk 0:00:07]}  Kd8 {[%clk 0:01:31]} 53. Bc6 {[%clk 0:00:07]}  Rc1 {[%clk 0:01:26]} 54. Bb5 {[%clk 0:00:07]}  Kc7 {[%clk 0:01:27]} 55. Kg4 {[%clk 0:00:06]}  Re1 {[%clk 0:01:23]} 56. Kf4 {[%clk 0:00:05]}  Kb6 {[%clk 0:01:19]} 57. Bd7 {[%clk 0:00:02]}  Kc5 {[%clk 0:01:11]} 58. Bb5 {[%clk 0:00:02]}  Kd4 {[%clk 0:01:10]} 59. Kg4 {[%clk 0:00:03]}  Ke3 {[%clk 0:01:03]} 60. c5 {[%clk 0:00:03]}  dxc5 {[%clk 0:00:55]} 61. d6 {[%clk 0:00:04]}  Rg1+ {[%clk 0:00:37]} 62. Kh3 {[%clk 0:00:04]}  Kf4 {[%clk 0:00:38]} 63. d7 {[%clk 0:00:03]}  Rd1 {[%clk 0:00:38]} 64. Kg2 {[%clk 0:00:02]}  c4 {[%clk 0:00:36]} 65. Kf2 {[%clk 0:00:01]}  c3 {[%clk 0:00:36]} 66. Be2 {[%clk 0:00:01]}  Rxd7 {[%clk 0:00:36]} 67. h5 {[%clk 0:00:00]}  c2 {[%clk 0:00:36]} 0-1


[Site "https://www.chess.com"]

[Event "Titled Tuesday Blitz August 1 Early 2023"]
[White "Zhigalko, Sergei"]
[Black "Tristan, Leonardo"]
[WhiteFideId "13502956"]
[BlackFideId "113816"]
[WhiteElo "2906"]
[BlackElo "2813"]
[Result "0-1"]
[Round "11"]
[TimeControl "180+1"]
[Date "2023.08.01"]
[WhiteClock "0:00:00"]
[BlackClock "0:00:14"]
[Board "8"]

1. e4 {[%clk 0:03:00]}  d5 {[%clk 0:03:00]} 2. exd5 {[%clk 0:03:01]}  Qxd5 {[%clk 0:03:01]} 3. Nc3 {[%clk 0:03:01]}  Qa5 {[%clk 0:03:01]} 4. d4 {[%clk 0:03:02]}  Nf6 {[%clk 0:03:02]} 5. Nf3 {[%clk 0:03:02]}  Bf5 {[%clk 0:03:02]} 6. Ne5 {[%clk 0:02:58]}  c6 {[%clk 0:03:02]} 7. Bd3 {[%clk 0:02:57]}  Bxd3 {[%clk 0:02:59]} 8. Qxd3 {[%clk 0:02:58]}  Nbd7 {[%clk 0:02:55]} 9. Nxd7 {[%clk 0:02:56]}  Nxd7 {[%clk 0:02:54]} 10. O-O {[%clk 0:02:57]}  e6 {[%clk 0:02:54]} 11. Qg3 {[%clk 0:02:57]}  h5 {[%clk 0:02:45]} 12. Bg5 {[%clk 0:02:24]}  Qf5 {[%clk 0:02:20]} 13. Rfe1 {[%clk 0:02:16]}  h4 {[%clk 0:01:53]} 14. Bxh4 {[%clk 0:01:57]}  f6 {[%clk 0:01:53]} 15. Qc7 {[%clk 0:01:21]}  Rxh4 {[%clk 0:01:45]} 16. Qxb7 {[%clk 0:01:21]}  Rd8 {[%clk 0:01:26]} 17. Qxc6 {[%clk 0:01:21]}  Kf7 {[%clk 0:01:26]} 18. Ne4 {[%clk 0:01:04]}  Nb6 {[%clk 0:01:10]} 19. g3 {[%clk 0:00:54]}  Rh8 {[%clk 0:00:57]} 20. h4 {[%clk 0:00:37]}  Qd5 {[%clk 0:00:43]} 21. Qc7+ {[%clk 0:00:30]}  Rd7 {[%clk 0:00:31]} 22. Qf4 {[%clk 0:00:31]}  Qf5 {[%clk 0:00:29]} 23. Qb8 {[%clk 0:00:22]}  g5 {[%clk 0:00:26]} 24. Nc5 {[%clk 0:00:16]}  Bg7 {[%clk 0:00:15]} 25. Nxd7 {[%clk 0:00:01]}  Rxb8 {[%clk 0:00:14]} 26. Nxb8 {[%clk 0:00:02]}  gxh4 {[%clk 0:00:15]} 27. c3 {[%clk 0:00:01]}  hxg3 {[%clk 0:00:15]} 28. fxg3 {[%clk 0:00:02]}  Qf3 {[%clk 0:00:13]} 29. Na6 {[%clk 0:00:01]}  Qxg3+ {[%clk 0:00:13]} 30. Kf1 {[%clk 0:00:02]}  Nd5 {[%clk 0:00:13]} 31. Ke2 {[%clk 0:00:01]}  Nf4+ {[%clk 0:00:13]} 32. Kd2 {[%clk 0:00:01]}  Qd3+ {[%clk 0:00:13]} 33. Kc1 {[%clk 0:00:01]}  Qxa6 {[%clk 0:00:14]} 34. Re2 {[%clk 0:00:00]}  Nxe2+ {[%clk 0:00:14]} 0-1


[Site "https://www.chess.com"]

[Event "Titled Tuesday Blitz August 1 Early 2023"]
[White "Makarian, Rudik"]
[Black "Bauman_Guy"]
[WhiteFideId "44105681"]
[WhiteElo "3013"]
[BlackElo "2803"]
[Result "1-0"]
[Round "11"]
[TimeControl "180+1"]
[Date "2023.08.01"]
[WhiteClock "0:00:48"]
[BlackClock "0:00:05"]
[Board "11"]

1. d4 {[%clk 0:03:00]}  Nf6 {[%clk 0:03:00]} 2. c4 {[%clk 0:02:59]}  e6 {[%clk 0:03:00]} 3. Nf3 {[%clk 0:03:00]}  d5 {[%clk 0:02:59]} 4. g3 {[%clk 0:03:00]}  dxc4 {[%clk 0:02:59]} 5. Bg2 {[%clk 0:03:00]}  Nc6 {[%clk 0:02:59]} 6. Qa4 {[%clk 0:03:00]}  Be7 {[%clk 0:02:46]} 7. O-O {[%clk 0:02:54]}  O-O {[%clk 0:02:45]} 8. Qxc4 {[%clk 0:02:54]}  Rb8 {[%clk 0:02:45]} 9. Rd1 {[%clk 0:02:53]}  a6 {[%clk 0:02:45]} 10. Nc3 {[%clk 0:02:50]}  Nb4 {[%clk 0:02:45]} 11. Qb3 {[%clk 0:02:48]}  b5 {[%clk 0:02:45]} 12. Ne5 {[%clk 0:02:46]}  Bb7 {[%clk 0:02:40]} 13. Bxb7 {[%clk 0:02:41]}  Rxb7 {[%clk 0:02:40]} 14. a3 {[%clk 0:02:40]}  Nbd5 {[%clk 0:02:40]} 15. Bg5 {[%clk 0:02:33]}  Nxc3 {[%clk 0:02:11]} 16. bxc3 {[%clk 0:02:26]}  h6 {[%clk 0:02:05]} 17. Bxf6 {[%clk 0:02:22]}  Bxf6 {[%clk 0:02:04]} 18. Nd3 {[%clk 0:02:11]}  Be7 {[%clk 0:02:04]} 19. a4 {[%clk 0:02:08]}  c6 {[%clk 0:01:33]} 20. axb5 {[%clk 0:02:07]}  axb5 {[%clk 0:01:33]} 21. Ra6 {[%clk 0:02:05]}  Qd5 {[%clk 0:01:32]} 22. Rb1 {[%clk 0:02:01]}  Rfb8 {[%clk 0:01:27]} 23. Ne5 {[%clk 0:01:59]}  Rc7 {[%clk 0:01:15]} 24. Nxc6 {[%clk 0:01:44]}  Qxb3 {[%clk 0:01:02]} 25. Rxb3 {[%clk 0:01:44]}  Rbc8 {[%clk 0:01:03]} 26. Na7 {[%clk 0:01:15]}  Ra8 {[%clk 0:00:28]} 27. Nxb5 {[%clk 0:01:13]}  Rxa6 {[%clk 0:00:28]} 28. Nxc7 {[%clk 0:01:12]}  Rc6 {[%clk 0:00:29]} 29. Nb5 {[%clk 0:01:11]}  h5 {[%clk 0:00:29]} 30. Kg2 {[%clk 0:01:10]}  h4 {[%clk 0:00:29]} 31. e3 {[%clk 0:01:10]}  Kh7 {[%clk 0:00:29]} 32. Na3 {[%clk 0:01:07]}  Ra6 {[%clk 0:00:29]} 33. Nc4 {[%clk 0:01:06]}  f6 {[%clk 0:00:28]} 34. g4 {[%clk 0:01:04]}  Ra2 {[%clk 0:00:25]} 35. h3 {[%clk 0:01:03]}  Kg6 {[%clk 0:00:24]} 36. Kf3 {[%clk 0:01:02]}  Rc2 {[%clk 0:00:23]} 37. e4 {[%clk 0:00:59]}  Bd8 {[%clk 0:00:17]} 38. Ne3 {[%clk 0:00:58]}  Rc1 {[%clk 0:00:17]} 39. Ng2 {[%clk 0:00:58]}  f5 {[%clk 0:00:14]} 40. Nf4+ {[%clk 0:00:57]}  Kf6 {[%clk 0:00:11]} 41. g5+ {[%clk 0:00:49]}  Kf7 {[%clk 0:00:09]} 42. g6+ {[%clk 0:00:48]}  Kf6 {[%clk 0:00:05]} 43. e5+ {[%clk 0:00:48]} 1-0


[Site "https://www.chess.com"]

[Event "Titled Tuesday Blitz August 1 Early 2023"]
[White "Demidov, Mikhail"]
[Black "Idani, Pouya"]
[WhiteFideId "4197143"]
[BlackFideId "12510130"]
[WhiteElo "2932"]
[BlackElo "2774"]
[Result "1-0"]
[Round "11"]
[TimeControl "180+1"]
[Date "2023.08.01"]
[WhiteClock "0:00:11"]
[BlackClock "0:00:04"]
[Board "14"]

1. Nf3 {[%clk 0:03:00]}  d5 {[%clk 0:02:56]} 2. d4 {[%clk 0:02:59]}  Nf6 {[%clk 0:02:55]} 3. Bf4 {[%clk 0:02:59]}  c5 {[%clk 0:02:55]} 4. dxc5 {[%clk 0:03:00]}  e6 {[%clk 0:02:52]} 5. e3 {[%clk 0:02:58]}  Bxc5 {[%clk 0:02:52]} 6. Be2 {[%clk 0:02:59]}  O-O {[%clk 0:02:51]} 7. O-O {[%clk 0:02:59]}  Nc6 {[%clk 0:02:51]} 8. c4 {[%clk 0:03:00]}  dxc4 {[%clk 0:02:51]} 9. Bxc4 {[%clk 0:03:01]}  a6 {[%clk 0:02:41]} 10. Nc3 {[%clk 0:02:58]}  b5 {[%clk 0:02:39]} 11. Bd3 {[%clk 0:02:56]}  Bb7 {[%clk 0:02:39]} 12. Rc1 {[%clk 0:02:56]}  Be7 {[%clk 0:02:32]} 13. Qe2 {[%clk 0:02:55]}  Qb6 {[%clk 0:02:23]} 14. Rfd1 {[%clk 0:02:50]}  Rad8 {[%clk 0:02:23]} 15. h3 {[%clk 0:02:47]}  Nb4 {[%clk 0:02:16]} 16. Bb1 {[%clk 0:02:46]}  Rxd1+ {[%clk 0:02:15]} 17. Qxd1 {[%clk 0:02:40]}  Rd8 {[%clk 0:02:03]} 18. Qe2 {[%clk 0:02:40]}  h6 {[%clk 0:01:43]} 19. a3 {[%clk 0:02:36]}  Nc6 {[%clk 0:01:34]} 20. Qc2 {[%clk 0:02:30]}  Na5 {[%clk 0:01:15]} 21. Ne5 {[%clk 0:02:16]}  Nc4 {[%clk 0:01:10]} 22. Nxc4 {[%clk 0:02:13]}  bxc4 {[%clk 0:01:11]} 23. Be5 {[%clk 0:02:07]}  Qc5 {[%clk 0:00:56]} 24. Bxf6 {[%clk 0:01:50]}  Bxf6 {[%clk 0:00:57]} 25. Qh7+ {[%clk 0:01:49]}  Kf8 {[%clk 0:00:56]} 26. Be4 {[%clk 0:01:36]}  Bxc3 {[%clk 0:00:49]} 27. bxc3 {[%clk 0:01:29]}  Qxa3 {[%clk 0:00:38]} 28. Rb1 {[%clk 0:01:28]}  Bxe4 {[%clk 0:00:37]} 29. Qxe4 {[%clk 0:01:29]}  Qxc3 {[%clk 0:00:35]} 30. Qh7 {[%clk 0:01:26]}  g6 {[%clk 0:00:35]} 31. Qxh6+ {[%clk 0:01:25]}  Kg8 {[%clk 0:00:35]} 32. Qh4 {[%clk 0:01:18]}  Qd3 {[%clk 0:00:33]} 33. Rb7 {[%clk 0:01:15]}  c3 {[%clk 0:00:23]} 34. Qf6 {[%clk 0:01:10]}  Rf8 {[%clk 0:00:20]} 35. Rc7 {[%clk 0:01:09]}  Qd1+ {[%clk 0:00:17]} 36. Kh2 {[%clk 0:01:07]}  Qd6+ {[%clk 0:00:17]} 37. Qf4 {[%clk 0:01:08]}  e5 {[%clk 0:00:18]} 38. Qc4 {[%clk 0:01:05]}  e4+ {[%clk 0:00:19]} 39. g3 {[%clk 0:01:02]}  Qd2 {[%clk 0:00:19]} 40. Kg2 {[%clk 0:01:02]}  a5 {[%clk 0:00:18]} 41. Qxe4 {[%clk 0:00:51]}  Qb2 {[%clk 0:00:12]} 42. Qc4 {[%clk 0:00:49]}  Qb4 {[%clk 0:00:11]} 43. Qxc3 {[%clk 0:00:47]}  Qxc3 {[%clk 0:00:12]} 44. Rxc3 {[%clk 0:00:48]}  Ra8 {[%clk 0:00:12]} 45. Ra3 {[%clk 0:00:45]}  a4 {[%clk 0:00:13]} 46. Kf3 {[%clk 0:00:46]}  Kg7 {[%clk 0:00:14]} 47. Ke4 {[%clk 0:00:47]}  Kf6 {[%clk 0:00:15]} 48. Kd4 {[%clk 0:00:44]}  Rh8 {[%clk 0:00:14]} 49. h4 {[%clk 0:00:45]}  Ra8 {[%clk 0:00:14]} 50. Kc4 {[%clk 0:00:44]}  Kf5 {[%clk 0:00:15]} 51. f3 {[%clk 0:00:40]}  g5 {[%clk 0:00:10]} 52. g4+ {[%clk 0:00:37]}  Kf6 {[%clk 0:00:09]} 53. h5 {[%clk 0:00:34]}  Kg7 {[%clk 0:00:04]} 54. Kb4 {[%clk 0:00:33]}  f5 {[%clk 0:00:04]} 55. gxf5 {[%clk 0:00:32]}  Kh6 {[%clk 0:00:03]} 56. Rxa4 {[%clk 0:00:30]}  Re8 {[%clk 0:00:04]} 57. e4 {[%clk 0:00:29]}  Kxh5 {[%clk 0:00:03]} 58. Kc5 {[%clk 0:00:29]}  g4 {[%clk 0:00:04]} 59. fxg4+ {[%clk 0:00:27]}  Kxg4 {[%clk 0:00:05]} 60. Kd6 {[%clk 0:00:20]}  Kg5 {[%clk 0:00:05]} 61. Kd5 {[%clk 0:00:18]}  Kf4 {[%clk 0:00:05]} 62. f6 {[%clk 0:00:16]}  Kg5 {[%clk 0:00:05]} 63. f7 {[%clk 0:00:14]}  Rf8 {[%clk 0:00:05]} 64. Ke6 {[%clk 0:00:14]}  Kg6 {[%clk 0:00:06]} 65. Ra7 {[%clk 0:00:13]}  Kg7 {[%clk 0:00:06]} 66. e5 {[%clk 0:00:13]}  Kg6 {[%clk 0:00:04]} 67. Ra1 {[%clk 0:00:11]} 1-0


[Site "https://www.chess.com"]

[Event "Titled Tuesday Blitz August 1 Early 2023"]
[White "Dau Khuong Duy"]
[Black "Vakhlamov, Igor L."]
[WhiteFideId "12424722"]
[BlackFideId "24126748"]
[WhiteElo "2882"]
[BlackElo "2742"]
[Result "1-0"]
[Round "11"]
[TimeControl "180+1"]
[Date "2023.08.01"]
[WhiteClock "0:00:19"]
[BlackClock "0:00:00"]
[Board "17"]

1. e4 {[%clk 0:03:00]}  c5 {[%clk 0:02:59]} 2. Nf3 {[%clk 0:03:01]}  e6 {[%clk 0:03:00]} 3. d4 {[%clk 0:03:01]}  cxd4 {[%clk 0:03:01]} 4. Nxd4 {[%clk 0:03:02]}  Nf6 {[%clk 0:03:01]} 5. Nc3 {[%clk 0:03:02]}  Nc6 {[%clk 0:03:02]} 6. a3 {[%clk 0:02:58]}  d5 {[%clk 0:03:01]} 7. exd5 {[%clk 0:02:49]}  exd5 {[%clk 0:02:54]} 8. Be2 {[%clk 0:02:47]}  Be7 {[%clk 0:02:52]} 9. O-O {[%clk 0:02:46]}  O-O {[%clk 0:02:53]} 10. Re1 {[%clk 0:02:38]}  h6 {[%clk 0:02:48]} 11. Bf1 {[%clk 0:02:38]}  Bc5 {[%clk 0:02:45]} 12. Be3 {[%clk 0:02:37]}  Bb6 {[%clk 0:02:38]} 13. f3 {[%clk 0:02:31]}  Bd7 {[%clk 0:02:32]} 14. Qd2 {[%clk 0:02:28]}  Rc8 {[%clk 0:02:30]} 15. Rad1 {[%clk 0:02:27]}  Re8 {[%clk 0:02:10]} 16. Bf2 {[%clk 0:02:27]}  Rxe1 {[%clk 0:02:06]} 17. Rxe1 {[%clk 0:02:26]}  Na5 {[%clk 0:01:43]} 18. b3 {[%clk 0:02:00]}  Qc7 {[%clk 0:01:34]} 19. Nce2 {[%clk 0:01:56]}  Nc6 {[%clk 0:01:28]} 20. Rc1 {[%clk 0:01:50]}  Qd6 {[%clk 0:01:13]} 21. a4 {[%clk 0:01:48]}  Ba5 {[%clk 0:01:08]} 22. c3 {[%clk 0:01:44]}  a6 {[%clk 0:01:08]} 23. b4 {[%clk 0:01:39]}  Bb6 {[%clk 0:00:56]} 24. a5 {[%clk 0:01:37]}  Ba7 {[%clk 0:00:47]} 25. Re1 {[%clk 0:01:30]}  Qf8 {[%clk 0:00:41]} 26. Nf4 {[%clk 0:01:22]}  Bb8 {[%clk 0:00:38]} 27. Nd3 {[%clk 0:01:18]}  Bd6 {[%clk 0:00:32]} 28. Nxc6 {[%clk 0:01:15]}  Bxc6 {[%clk 0:00:33]} 29. Bd4 {[%clk 0:01:13]}  Nd7 {[%clk 0:00:30]} 30. Qe3 {[%clk 0:01:11]}  Nb8 {[%clk 0:00:21]} 31. g3 {[%clk 0:01:08]}  Re8 {[%clk 0:00:22]} 32. Qf2 {[%clk 0:01:08]}  Nd7 {[%clk 0:00:23]} 33. Bg2 {[%clk 0:01:07]}  Re7 {[%clk 0:00:22]} 34. f4 {[%clk 0:01:03]}  Qe8 {[%clk 0:00:22]} 35. h3 {[%clk 0:00:57]}  Rxe1+ {[%clk 0:00:20]} 36. Qxe1 {[%clk 0:00:58]}  Qxe1+ {[%clk 0:00:20]} 37. Nxe1 {[%clk 0:00:59]}  Kf8 {[%clk 0:00:20]} 38. Nc2 {[%clk 0:00:59]}  f6 {[%clk 0:00:20]} 39. Ne3 {[%clk 0:00:59]}  g5 {[%clk 0:00:16]} 40. Nxd5 {[%clk 0:00:56]}  Kf7 {[%clk 0:00:16]} 41. Kf2 {[%clk 0:00:54]}  Ke6 {[%clk 0:00:14]} 42. c4 {[%clk 0:00:50]}  gxf4 {[%clk 0:00:13]} 43. gxf4 {[%clk 0:00:50]}  Kf5 {[%clk 0:00:11]} 44. Bc3 {[%clk 0:00:46]}  Bxd5 {[%clk 0:00:09]} 45. Bxd5 {[%clk 0:00:46]}  b6 {[%clk 0:00:09]} 46. Bc6 {[%clk 0:00:44]}  Nb8 {[%clk 0:00:08]} 47. Bb7 {[%clk 0:00:30]}  bxa5 {[%clk 0:00:08]} 48. bxa5 {[%clk 0:00:29]}  Bxf4 {[%clk 0:00:09]} 49. Kf3 {[%clk 0:00:29]}  Be5 {[%clk 0:00:08]} 50. Bc8+ {[%clk 0:00:26]}  Kg6 {[%clk 0:00:07]} 51. Bxe5 {[%clk 0:00:27]}  fxe5 {[%clk 0:00:08]} 52. Ke4 {[%clk 0:00:28]}  Nc6 {[%clk 0:00:08]} 53. Bxa6 {[%clk 0:00:27]}  Nxa5 {[%clk 0:00:08]} 54. c5 {[%clk 0:00:27]}  Kf6 {[%clk 0:00:08]} 55. Kd5 {[%clk 0:00:25]}  e4 {[%clk 0:00:08]} 56. Kxe4 {[%clk 0:00:24]}  Ke6 {[%clk 0:00:08]} 57. Bc8+ {[%clk 0:00:23]}  Ke7 {[%clk 0:00:06]} 58. Kd5 {[%clk 0:00:23]}  h5 {[%clk 0:00:07]} 59. Bf5 {[%clk 0:00:21]}  Nb7 {[%clk 0:00:06]} 60. c6 {[%clk 0:00:21]}  Nd6 {[%clk 0:00:06]} 61. c7 {[%clk 0:00:20]}  h4 {[%clk 0:00:00]} 62. Bg4 {[%clk 0:00:19]} 1-0


[Site "https://www.chess.com"]

[Event "Titled Tuesday Blitz August 1 Early 2023"]
[White "Shtembuliak, Evgeny"]
[Black "Brodowski, Piotr"]
[WhiteFideId "14113325"]
[BlackFideId "1124480"]
[WhiteElo "2860"]
[BlackElo "2726"]
[Result "1-0"]
[Round "11"]
[TimeControl "180+1"]
[Date "2023.08.01"]
[WhiteClock "0:00:54"]
[BlackClock "0:00:17"]
[Board "18"]

1. c4 {[%clk 0:03:00]}  e5 {[%clk 0:02:51]} 2. Nc3 {[%clk 0:03:01]}  Nc6 {[%clk 0:02:51]} 3. Nf3 {[%clk 0:03:01]}  g6 {[%clk 0:02:51]} 4. h4 {[%clk 0:03:01]}  h6 {[%clk 0:02:49]} 5. h5 {[%clk 0:03:00]}  g5 {[%clk 0:02:49]} 6. d4 {[%clk 0:03:01]}  exd4 {[%clk 0:02:38]} 7. Nxd4 {[%clk 0:03:02]}  d6 {[%clk 0:02:38]} 8. g3 {[%clk 0:02:51]}  Bg7 {[%clk 0:02:38]} 9. Nxc6 {[%clk 0:02:49]}  bxc6 {[%clk 0:02:38]} 10. Bg2 {[%clk 0:02:50]}  Bd7 {[%clk 0:02:38]} 11. Qa4 {[%clk 0:02:47]}  Ne7 {[%clk 0:02:16]} 12. Qa5 {[%clk 0:02:46]}  O-O {[%clk 0:01:54]} 13. O-O {[%clk 0:02:45]}  f5 {[%clk 0:01:46]} 14. f4 {[%clk 0:02:30]}  g4 {[%clk 0:01:45]} 15. Be3 {[%clk 0:02:26]}  Rb8 {[%clk 0:01:12]} 16. b3 {[%clk 0:02:26]}  c5 {[%clk 0:01:11]} 17. Rad1 {[%clk 0:02:17]}  Nc6 {[%clk 0:01:04]} 18. Bxc6 {[%clk 0:02:16]}  Bxc6 {[%clk 0:01:05]} 19. Nd5 {[%clk 0:02:16]}  Re8 {[%clk 0:00:41]} 20. Kf2 {[%clk 0:01:51]}  Bxd5 {[%clk 0:00:36]} 21. Rxd5 {[%clk 0:01:52]}  Qe7 {[%clk 0:00:36]} 22. Qd2 {[%clk 0:01:52]}  Rbd8 {[%clk 0:00:34]} 23. Qd3 {[%clk 0:01:50]}  c6 {[%clk 0:00:26]} 24. Rxf5 {[%clk 0:01:49]}  d5 {[%clk 0:00:27]} 25. cxd5 {[%clk 0:01:49]}  cxd5 {[%clk 0:00:28]} 26. Rxd5 {[%clk 0:01:37]}  Bd4 {[%clk 0:00:20]} 27. Bxd4 {[%clk 0:01:20]}  Rxd5 {[%clk 0:00:20]} 28. Qg6+ {[%clk 0:01:21]}  Kf8 {[%clk 0:00:20]} 29. Qxh6+ {[%clk 0:01:21]}  Kg8 {[%clk 0:00:20]} 30. Qh8+ {[%clk 0:01:00]}  Kf7 {[%clk 0:00:20]} 31. Qg7+ {[%clk 0:01:00]}  Ke6 {[%clk 0:00:19]} 32. Qxg4+ {[%clk 0:01:01]}  Kd6 {[%clk 0:00:19]} 33. Be5+ {[%clk 0:01:01]}  Kc6 {[%clk 0:00:19]} 34. h6 {[%clk 0:00:57]}  Rf8 {[%clk 0:00:19]} 35. Bg7 {[%clk 0:00:56]}  Re8 {[%clk 0:00:18]} 36. Qf3 {[%clk 0:00:56]}  Kb5 {[%clk 0:00:18]} 37. Qxd5 {[%clk 0:00:54]}  Qxe2+ {[%clk 0:00:18]} 38. Kg1 {[%clk 0:00:55]}  Re3 {[%clk 0:00:17]} 39. Qc4+ {[%clk 0:00:54]} 1-0


[Site "https://www.chess.com"]

[Event "Titled Tuesday Blitz August 1 Early 2023"]
[White "Zhao, Jun"]
[Black "Timofeev, Artyom"]
[WhiteFideId "8602522"]
[BlackFideId "4140419"]
[WhiteElo "2737"]
[BlackElo "2851"]
[Result "1-0"]
[Round "11"]
[TimeControl "180+1"]
[Date "2023.08.01"]
[WhiteClock "0:00:04"]
[BlackClock "0:00:19"]
[Board "19"]

1. e4 {[%clk 0:02:55]}  d6 {[%clk 0:02:59]} 2. d4 {[%clk 0:02:54]}  Nf6 {[%clk 0:02:59]} 3. Nc3 {[%clk 0:02:55]}  g6 {[%clk 0:02:59]} 4. Nf3 {[%clk 0:02:55]}  Bg7 {[%clk 0:02:59]} 5. Be2 {[%clk 0:02:55]}  O-O {[%clk 0:02:58]} 6. O-O {[%clk 0:02:55]}  c6 {[%clk 0:02:58]} 7. a4 {[%clk 0:02:54]}  Qc7 {[%clk 0:02:58]} 8. Be3 {[%clk 0:02:45]}  e5 {[%clk 0:02:57]} 9. dxe5 {[%clk 0:02:44]}  dxe5 {[%clk 0:02:56]} 10. h3 {[%clk 0:02:43]}  Rd8 {[%clk 0:02:54]} 11. Qb1 {[%clk 0:02:42]}  h6 {[%clk 0:02:52]} 12. Bc4 {[%clk 0:02:38]}  Nbd7 {[%clk 0:02:50]} 13. Rd1 {[%clk 0:02:37]}  Re8 {[%clk 0:02:46]} 14. a5 {[%clk 0:02:30]}  Nf8 {[%clk 0:02:43]} 15. Bc5 {[%clk 0:02:27]}  N6d7 {[%clk 0:02:33]} 16. Bd6 {[%clk 0:02:20]}  Qd8 {[%clk 0:02:33]} 17. b4 {[%clk 0:02:07]}  Qf6 {[%clk 0:02:28]} 18. Qb3 {[%clk 0:02:01]}  Ne6 {[%clk 0:02:28]} 19. Ne2 {[%clk 0:01:53]}  Bf8 {[%clk 0:02:20]} 20. c3 {[%clk 0:01:35]}  Nd4 {[%clk 0:01:45]} 21. cxd4 {[%clk 0:01:23]}  Bxd6 {[%clk 0:01:44]} 22. d5 {[%clk 0:01:15]}  c5 {[%clk 0:01:33]} 23. b5 {[%clk 0:00:56]}  Qe7 {[%clk 0:01:31]} 24. Nd2 {[%clk 0:00:50]}  Kg7 {[%clk 0:01:29]} 25. Bd3 {[%clk 0:00:45]}  Nf6 {[%clk 0:01:23]} 26. Nc4 {[%clk 0:00:45]}  Bd7 {[%clk 0:01:23]} 27. Ng3 {[%clk 0:00:38]}  h5 {[%clk 0:01:22]} 28. Nf1 {[%clk 0:00:37]}  h4 {[%clk 0:01:18]} 29. Nfe3 {[%clk 0:00:37]}  Nh5 {[%clk 0:01:17]} 30. Be2 {[%clk 0:00:31]}  Nf4 {[%clk 0:01:16]} 31. Bg4 {[%clk 0:00:32]}  Rad8 {[%clk 0:01:12]} 32. Bxd7 {[%clk 0:00:26]}  Rxd7 {[%clk 0:01:12]} 33. Rd2 {[%clk 0:00:21]}  Qg5 {[%clk 0:01:11]} 34. Kh2 {[%clk 0:00:17]}  Kh7 {[%clk 0:01:04]} 35. b6 {[%clk 0:00:17]}  a6 {[%clk 0:01:03]} 36. Qa4 {[%clk 0:00:17]}  Red8 {[%clk 0:01:02]} 37. Rg1 {[%clk 0:00:18]}  Be7 {[%clk 0:00:51]} 38. Qd1 {[%clk 0:00:17]}  f5 {[%clk 0:00:50]} 39. g3 {[%clk 0:00:17]}  hxg3+ {[%clk 0:00:49]} 40. Rxg3 {[%clk 0:00:17]}  Qf6 {[%clk 0:00:44]} 41. exf5 {[%clk 0:00:11]}  gxf5 {[%clk 0:00:44]} 42. d6 {[%clk 0:00:10]}  Bf8 {[%clk 0:00:41]} 43. Nd5 {[%clk 0:00:07]}  Nxd5 {[%clk 0:00:40]} 44. Rxd5 {[%clk 0:00:07]}  Bh6 {[%clk 0:00:40]} 45. Qh5 {[%clk 0:00:06]}  Rg7 {[%clk 0:00:37]} 46. Rxe5 {[%clk 0:00:05]}  Rxg3 {[%clk 0:00:25]} 47. fxg3 {[%clk 0:00:05]}  f4 {[%clk 0:00:25]} 48. Qf5+ {[%clk 0:00:04]}  Qxf5 {[%clk 0:00:25]} 49. Rxf5 {[%clk 0:00:05]}  Re8 {[%clk 0:00:24]} 50. gxf4 {[%clk 0:00:04]}  Re4 {[%clk 0:00:24]} 51. d7 {[%clk 0:00:03]}  Rd4 {[%clk 0:00:24]} 52. Ne5 {[%clk 0:00:03]}  Kg8 {[%clk 0:00:21]} 53. Rf6 {[%clk 0:00:03]}  Bg7 {[%clk 0:00:21]} 54. Re6 {[%clk 0:00:03]}  Bxe5 {[%clk 0:00:21]} 55. Re8+ {[%clk 0:00:04]}  Kf7 {[%clk 0:00:21]} 56. d8=Q {[%clk 0:00:03]}  Rxd8 {[%clk 0:00:21]} 57. Rxd8 {[%clk 0:00:03]}  Bxf4+ {[%clk 0:00:22]} 58. Kg2 {[%clk 0:00:04]}  Bd2 {[%clk 0:00:19]} 59. Rxd2 {[%clk 0:00:04]} 1-0


[Site "https://www.chess.com"]